bitfinex/quotes_ETHUSD_20240926
["timestamp","ask_amount","ask_price","bid_price","bid_amount"]
[1727359702839,3.80491,2628.2,2628.0,0.07244944]
[1727359702840,0.09513332,2628.1,2628.0,0.07244944]
[1727359703137,0.78942595,2628.1,2628.0,0.07244944]
[1727359703304,3.80468,2628.4,2628.0,0.07244944]
[1727359703498,0.50332663,2628.5,2628.2,3.80483]
[1727359703893,0.50332663,2628.5,2628.3,0.07212114]
[1727359704139,4.20143535,2629.4,2628.3,0.07212114]
[1727359704140,0.0381239,2629.1,2628.6,3.80429]
[1727359704342,0.0381239,2629.1,2628.8,3.80397]
[1727359704758,0.0381239,2629.1,2628.9,0.07146476]
[1727359704920,0.0381239,2629.1,2628.9,3.87524476]
[1727359705114,0.0381239,2629.1,2629.0,4.56982]
[1727359705549,0.0381239,2629.1,2629.0,4.64117539]
[1727359706319,0.0381239,2629.1,2629.0,0.83745539]
[1727359708253,0.0381239,2629.1,2629.0,4.64117539]
[1727359708460,0.0381239,2629.1,2629.0,4.71717321]
[1727359708818,0.0381239,2629.1,2629.0,4.64117539]
[1727359709157,0.0381239,2629.1,2629.0,4.7171755]
[1727359709517,0.0381239,2629.1,2629.0,4.64117539]
[1727359710416,7.6432039,2629.9,2629.4,4.58696]
[1727359710417,7.6431639,2629.9,2629.4,4.58696]
[1727359710634,3.80264,2629.8,2629.5,0.06936449]
[1727359711040,3.80272,2629.7,2629.5,0.06936449]
[1727359711942,3.80272,2629.7,2629.4,0.7839]
[1727359712143,3.80272,2629.7,2629.6,0.06918559]
[1727359712474,4.60495029,2629.9,2629.6,0.06918559]
[1727359712475,7.6431239,2629.9,2629.6,0.06918559]
[1727359712634,3.80266,2629.8,2629.4,0.7839]
[1727359712829,3.80266,2629.8,2629.5,0.06929026]
[1727359712830,3.80271,2629.7,2629.5,0.06929026]
[1727359713131,3.80271,2629.7,2629.4,0.7839]
[1727359713132,3.80293,2629.6,2629.4,0.7839]
[1727359713468,0.8256,2629.6,2629.5,0.06929026]
[1727359713676,4.72353232,2629.6,2629.5,0.06929026]
[1727359713880,3.80339,2629.3,2628.8,3.8039]
[1727359714233,3.8031,2629.5,2628.8,3.8039]
[1727359714234,7.60622,2629.5,2629.1,0.7977]
[1727359714432,3.8031,2629.5,2629.2,0.06961827]
[1727359714633,3.80316,2629.4,2629.2,0.06961827]
[1727359715438,3.80329,2629.3,2629.2,0.06961827]
[1727359715682,3.80316,2629.4,2629.2,0.06961827]
[1727359716074,3.80316,2629.4,2628.9,4.62647]
[1727359716238,3.80316,2629.4,2629.3,0.06959244]
[1727359716434,3.80316,2629.4,2628.9,4.62655]
[1727359716634,3.80316,2629.4,2629.0,0.06992049]
[1727359717260,3.80331,2629.3,2629.0,0.06992049]
[1727359717430,3.89854091,2629.2,2629.0,0.06992049]
[1727359717635,3.80358,2629.1,2629.0,0.06992049]
[1727359717874,3.80358,2629.1,2628.7,4.60904]
[1727359718062,3.80345,2629.2,2628.7,0.8049]
[1727359718063,3.80373,2629.0,2628.7,0.8049]
[1727359718448,3.80398,2628.9,2628.7,0.8049]
[1727359718662,3.80398,2628.9,2628.5,4.60524]
[1727359719539,3.80358,2629.1,2628.6,3.80429]
[1727359720948,3.80358,2629.1,2628.5,4.60524]
[1727359721144,3.80358,2629.1,2628.6,3.80424]
[1727359722677,3.80345,2629.2,2628.8,0.7699]
[1727359722877,3.80358,2629.1,2628.8,0.7699]
[1727359723051,4.64575577,2629.2,2628.8,0.7699]
[1727359723381,3.8036,2629.1,2628.8,0.7699]
[1727359723563,11.40601772,2629.3,2628.8,4.57391]
[1727359723789,3.80359,2629.1,2628.8,0.7699]
[1727359724281,3.80375,2629.0,2628.8,0.7699]
[1727359724851,3.80359,2629.1,2628.8,0.7699]
[1727359725364,3.80397,2628.9,2628.4,8.38327]
[1727359725568,3.80412,2628.8,2628.4,0.7742]
[1727359725749,3.80388,2628.9,2628.4,4.57868]
[1727359725954,3.80388,2628.9,2628.4,0.7742]
[1727359726644,3.80388,2628.9,2628.5,3.80444]
[1727359726845,1.22267177,2629.2,2628.6,3.80421]
[1727359726846,3.80359,2629.1,2628.6,3.80421]
[1727359727483,3.80355,2629.2,2628.7,3.80416]
[1727359727646,3.80363,2629.1,2628.6,3.80421]
[1727359727839,3.80375,2629.0,2628.6,3.80429]
[1727359728041,7.60734,2629.1,2628.6,3.80429]
[1727359728250,4.94429377,2629.1,2628.6,3.80423]
[1727359728545,3.80363,2629.1,2628.7,3.80414]
[1727359729453,7.60282772,2629.2,2628.8,0.8296]
[1727359729654,3.80353,2629.2,2628.8,0.8296]
[1727359730480,3.80351,2629.2,2628.8,0.8296]
[1727359730788,4.646255,2629.2,2628.9,0.06993941]
[1727359731577,3.80367,2629.1,2628.9,0.06993941]
[1727359733085,0.842745,2629.2,2628.9,0.06993941]
[1727359733391,4.646195,2629.2,2628.9,0.06993941]
[1727359735000,4.59562,2629.7,2629.2,3.80341]
[1727359735300,4.59562,2629.7,2629.3,0.06950555]
[1727359735301,4.59563,2629.7,2629.3,0.06950555]
[1727359735588,0.7929,2629.7,2629.3,0.06950555]
[1727359735884,3.80292,2629.6,2629.1,3.80357]
[1727359736087,7.60221772,2629.6,2629.4,0.06931624]
[1727359736296,7.60221772,2629.6,2629.1,3.80349]
[1727359736450,7.60221772,2629.6,2629.0,0.753]
[1727359736451,0.09508474,2629.5,2629.0,0.753]
[1727359736652,3.79929772,2629.3,2628.9,3.80378]
[1727359736893,3.79929772,2629.3,2628.9,7.60757]
[1727359737094,3.79929772,2629.3,2629.0,3.80363]
[1727359737991,7.60231772,2629.5,2629.0,3.80363]
[1727359738223,3.79929772,2629.5,2629.2,3.80337]
[1727359738501,0.7929,2629.7,2629.3,0.7872]
[1727359738803,0.7929,2629.7,2629.3,4.59043]
[1727359739093,7.60187772,2629.8,2629.4,3.80308]
[1727359739094,3.79929772,2629.8,2629.4,3.80308]
[1727359739263,3.79929772,2629.8,2629.3,4.59043]
[1727359739264,8.74612888,2629.8,2629.3,4.59043]
[1727359739463,8.74612888,2629.8,2629.4,3.80313]
[1727359740197,12.54882888,2629.8,2629.3,0.7872]
[1727359740486,3.79929772,2629.5,2629.1,3.80355]
[1727359740853,3.79929772,2629.5,2628.8,0.7574]
[1727359740854,3.8035,2629.2,2628.8,0.7574]
[1727359741055,7.60279772,2629.2,2628.8,4.56136]
[1727359741275,7.60279772,2629.2,2628.8,0.7574]
[1727359741480,11.40632772,2629.2,2628.8,0.7574]
[1727359741650,3.79929772,2629.2,2628.8,4.56137]
[1727359741863,8.36123772,2629.4,2628.9,3.80384]
[1727359742082,8.36123772,2629.4,2629.0,3.8037]
[1727359742399,4.58467,2629.8,2629.4,3.80306]
[1727359742808,0.7821,2629.8,2629.4,7.60612]
[1727359743321,4.52147901,2629.9,2629.5,3.87183458]
[1727359743527,3.83742162,2629.9,2629.6,3.80284]
[1727359743684,0.0381239,2629.9,2629.5,3.87190458]
[1727359744112,3.8406339,2629.9,2629.5,0.06891458]
[1727359744419,3.8406339,2629.9,2629.5,3.87184458]
[1727359744420,0.0381239,2629.9,2629.5,3.87184458]
[1727359745619,0.0381239,2629.9,2629.5,0.06891458]
[1727359745919,7.63987162,2629.9,2629.5,3.87189458]
[1727359746080,3.8026,2629.8,2629.5,0.06891458]
[1727359746282,3.80285,2629.7,2629.5,0.06891458]
[1727359746480,8.41574772,2629.6,2629.1,4.6245]
[1727359746681,3.80281,2629.7,2629.2,3.80337]
[1727359746918,3.80281,2629.7,2629.3,3.80328]
[1727359747212,0.8517239,2629.9,2629.4,3.8031]
[1727359747412,0.0381239,2629.9,2629.5,3.8029]
[1727359747614,0.0381239,2629.9,2629.5,4.5595]
[1727359748177,0.0381239,2629.9,2629.6,3.80285]
[1727359749180,0.0381239,2629.9,2629.5,0.7566]
[1727359749386,0.0381239,2629.9,2629.5,4.55959]
[1727359750027,0.0381239,2629.9,2629.7,3.80263]
[1727359750232,0.0381239,2629.9,2629.8,3.80257]
[1727359750386,0.0381239,2629.9,2629.7,3.80263]
[1727359750586,0.0381239,2629.9,2629.5,4.55951]
[1727359750826,0.0381239,2629.9,2629.6,3.80277]
[1727359751500,0.0381239,2629.9,2629.8,3.80257]
[1727359751815,0.0381239,2629.9,2629.8,4.60267]
[1727359752624,0.0381239,2629.9,2629.6,3.80283]
[1727359752826,0.0381239,2629.9,2629.8,3.80257]
[1727359754133,0.0381239,2629.9,2629.8,4.61247]
[1727359755841,0.0381239,2629.9,2629.8,8.41176772]
[1727359755996,0.0381239,2629.9,2629.8,11.41176772]
[1727359756196,0.0381239,2629.9,2629.8,12.90148238]
[1727359756395,0.0381239,2629.9,2629.8,14.31102974]
[1727359756595,0.0381239,2629.9,2629.8,11.96176772]
[1727359756893,0.0381239,2630.6,2629.8,11.96176772]
[1727359756894,0.0381239,2630.6,2630.5,4.62745]
[1727359759833,0.0381239,2630.6,2630.5,4.70329589]
[1727359760037,0.0381239,2630.6,2630.5,4.62745]
[1727359760594,0.0381239,2630.6,2630.5,4.69422844]
[1727359763530,0.0381239,2630.6,2630.5,0.06677844]
[1727359763935,0.7525,2630.9,2630.5,0.06677844]
[1727359763936,0.74390746,2630.9,2630.5,0.06677844]
[1727359764244,4.54498746,2630.9,2630.5,0.06677844]
[1727359764549,5.75940798,2630.9,2630.5,0.06677844]
[1727359764756,3.80113,2630.8,2630.5,0.06677844]
[1727359764949,5.75940798,2630.9,2630.4,3.80162]
[1727359765244,1.95842798,2630.9,2630.6,0.06465859]
[1727359765453,1.95842798,2630.9,2630.5,0.06476782]
[1727359765603,1.95842798,2630.9,2630.4,3.80162]
[1727359765604,1.95842798,2630.9,2630.7,0.06454936]
[1727359765808,1.95842798,2630.9,2630.6,0.06465859]
[1727359765809,0.74390746,2630.9,2630.6,0.06465859]
[1727359766158,0.74390746,2630.9,2630.7,0.06454936]
[1727359766322,3.80063,2631.2,2630.7,0.06454936]
[1727359766649,3.80063,2631.2,2630.6,3.80133]
[1727359766650,4.18450639,2631.2,2630.6,3.80133]
[1727359766857,0.7572,2631.0,2630.8,0.06444014]
[1727359767157,0.7572,2631.0,2630.9,0.06433093]
[1727359767158,1.34641483,2631.0,2630.9,0.06433093]
[1727359767322,1.25138564,2631.0,2630.9,0.06433093]
[1727359767522,1.25138564,2631.0,2630.4,3.8016]
[1727359767729,0.7572,2631.0,2630.4,3.8016]
[1727359768050,4.55804,2631.0,2630.5,3.80155]
[1727359768316,4.55804,2631.0,2630.2,0.8055]
[1727359768317,4.55804,2631.0,2630.3,3.8018]
[1727359768460,5.43216141,2631.0,2630.3,3.80177]
[1727359768617,5.43216141,2631.0,2630.5,3.80145]
[1727359768821,5.43216141,2631.0,2630.5,7.60291]
[1727359769143,0.7572,2631.0,2630.5,3.80145]
[1727359769339,3.80115,2630.8,2630.3,3.80175]
[1727359770358,3.80115,2630.8,2630.3,7.60351]
[1727359770561,4.55812,2631.0,2630.3,3.80175]
[1727359770562,3.80106,2630.9,2630.3,3.80175]
[1727359770732,5.22146777,2631.0,2630.4,3.80159]
[1727359770936,3.80099,2630.9,2630.4,3.80169]
[1727359771158,4.55812,2631.0,2630.4,3.80169]
[1727359771458,4.55812,2631.0,2630.5,3.80155]
[1727359771666,3.80106,2630.9,2630.4,3.80169]
[1727359771959,4.55812,2631.0,2630.4,7.60325]
[1727359772176,4.55812,2631.0,2630.5,3.80152]
[1727359772332,3.79929772,2631.1,2630.5,3.80152]
[1727359772849,3.80095,2631.0,2630.5,3.80152]
[1727359773872,7.59998772,2631.1,2630.6,3.8014]
[1727359774176,3.80069,2631.1,2630.6,3.8014]
[1727359774332,3.80069,2631.1,2630.6,7.60271]
[1727359774533,3.80063,2631.2,2630.7,3.80126]
[1727359774729,7.60126,2631.2,2630.7,3.80126]
[1727359774966,3.80055,2631.2,2630.7,3.80118]
[1727359775148,3.80042,2631.3,2630.8,3.80103]
[1727359775334,4.62147,2631.2,2630.7,3.80118]
[1727359775534,0.8209,2631.2,2630.9,0.06445849]
[1727359775849,0.8209,2631.2,2630.8,3.8656677]
[1727359776012,0.8209,2631.2,2631.0,0.06434929]
[1727359776153,0.8550239,2631.4,2630.9,0.06445849]
[1727359776354,0.8550239,2631.4,2631.1,0.06424009]
[1727359776355,3.80054,2631.2,2631.1,0.06424009]
[1727359776559,7.59969772,2631.3,2631.0,0.06434929]
[1727359776761,0.8169,2631.2,2630.8,3.80104]
[1727359777258,0.8169,2631.2,2630.9,0.06445849]
[1727359777903,0.8169,2631.2,2630.7,3.80116]
[1727359778191,0.8169,2631.2,2630.8,0.0645677]
[1727359778567,4.61745,2631.2,2630.7,3.80116]
[1727359778892,4.61745,2631.2,2630.8,0.0645677]
[1727359779102,4.61745,2631.2,2630.7,3.80116]
[1727359779394,4.61745,2631.2,2630.8,0.0645677]
[1727359779598,0.8169,2631.2,2630.8,3.8656077]
[1727359779799,4.61746,2631.2,2630.8,3.80109]
[1727359779984,0.8169,2631.2,2630.9,0.06445849]
[1727359780159,0.8325239,2631.4,2630.9,0.06445849]
[1727359780361,4.6327839,2631.4,2630.9,0.06445849]
[1727359780601,4.6328039,2631.4,2631.0,3.80077]
[1727359780910,4.6328039,2631.4,2631.1,0.06424009]
[1727359781407,0.8325239,2631.4,2631.1,0.06424009]
[1727359781714,3.89541937,2631.3,2631.1,0.06424009]
[1727359782017,3.89541937,2631.3,2630.6,3.80133]
[1727359782018,3.80054,2631.2,2630.6,3.80133]
[1727359782169,3.80054,2631.2,2630.8,3.80111]
[1727359782495,3.80041,2631.3,2630.8,3.80104]
[1727359782694,7.60089,2631.3,2630.8,3.80104]
[1727359782992,3.80041,2631.3,2630.8,3.80104]
[1727359783197,3.80041,2631.3,2630.9,3.80093]
[1727359783400,0.8325239,2631.4,2630.6,3.80132]
[1727359783401,0.0381239,2631.4,2630.6,0.8117]
[1727359783607,0.0381239,2631.4,2631.3,3.8004]
[1727359784813,0.0381239,2631.4,2631.0,3.80072]
[1727359784975,0.8363239,2631.4,2631.0,7.60147]
[1727359785297,0.8363239,2631.4,2631.0,3.80072]
[1727359785503,0.8363239,2631.4,2631.1,3.80061]
[1727359785809,0.8363239,2631.4,2631.0,3.80072]
[1727359785965,0.8363239,2631.4,2631.1,3.80069]
[1727359786165,0.8363239,2631.4,2630.9,0.8117]
[1727359786166,0.0381239,2631.4,2631.2,3.80051]
[1727359786659,0.0381239,2631.4,2631.0,3.80073]
[1727359786859,0.0381239,2631.4,2631.2,3.80054]
[1727359787155,0.0381239,2631.4,2631.3,7.6234]
[1727359787356,0.0381239,2631.4,2631.3,11.4984553]
[1727359787506,0.0381239,2632.2,2632.0,3.79927]
[1727359787860,0.0381239,2632.2,2632.1,4.62224]
[1727359790309,0.0381239,2632.2,2632.1,4.68243135]
[1727359791555,0.0381239,2633.0,2632.9,4.62989]
[1727359791847,0.0381239,2633.0,2632.9,7.70552377]
[1727359792052,0.0381239,2633.0,2632.9,7.76479358]
[1727359792211,0.0381239,2633.8,2633.7,3.79693]
[1727359792404,0.0381239,2633.8,2632.9,0.05930026]
[1727359792405,0.0381239,2633.8,2633.6,0.8129]
[1727359792649,0.0381239,2633.8,2633.7,3.85535357]
[1727359793306,0.0381239,2633.8,2633.7,6.85535357]
[1727359793912,0.0381239,2633.8,2633.7,3.85535357]
[1727359794646,0.0381239,2633.8,2633.7,4.67605357]
[1727359794968,0.0381239,2633.8,2633.7,7.67605357]
[1727359797009,0.0381239,2634.6,2633.7,7.67605357]
[1727359797010,0.0381239,2634.6,2634.3,3.79595]
[1727359797513,0.0381239,2634.6,2634.4,3.8494545]
[1727359797730,0.0381239,2634.6,2634.4,0.0535545]
[1727359797956,0.034,2634.7,2634.5,6.79578]
[1727359798117,0.0432289,2634.7,2634.6,6.79564]
[1727359798317,0.0432289,2634.7,2634.6,7.60109212]
[1727359798533,0.0495182,2635.4,2635.3,3.79463]
[1727359798534,0.0427471,2635.4,2635.3,3.79463]
[1727359798736,0.0427471,2635.4,2635.3,3.84678017]
[1727359799680,0.0427471,2635.4,2635.3,7.59908017]
[1727359799877,0.0427471,2635.4,2635.3,7.67449224]
[1727359800046,0.0427471,2635.4,2635.3,7.59908017]
[1727359800381,0.0427471,2635.4,2635.3,8.53088017]
[1727359800833,0.0495182,2636.4,2636.3,3.79319]
[1727359801235,0.0495182,2636.4,2636.3,0.04960056]
[1727359801470,0.0495182,2636.4,2636.3,3.84279056]
[1727359801674,0.0495182,2636.4,2636.1,3.79335]
[1727359801875,0.0495182,2636.4,2636.3,0.04959135]
[1727359802075,0.0495182,2636.4,2636.2,0.04970011]
[1727359802374,0.0495182,2636.4,2636.3,0.04959135]
[1727359802779,0.8340182,2636.4,2636.3,0.04959135]
[1727359802975,3.79319,2636.3,2635.3,3.79456]
[1727359803279,1.29672302,2636.4,2635.2,0.7922]
[1727359803280,1.29672302,2636.4,2635.6,3.79417]
[1727359803477,5.08986302,2636.4,2635.5,3.79434]
[1727359803677,1.29672302,2636.4,2635.7,0.05003677]
[1727359803881,0.8340182,2636.4,2635.7,3.79403]
[1727359804039,0.8340182,2636.4,2635.8,0.04992796]
[1727359804241,3.79096,2637.9,2635.8,0.04992796]
[1727359804242,0.4181287,2637.4,2636.6,0.7663]
[1727359804449,0.39705368,2637.6,2636.6,0.7663]
[1727359804450,0.7687,2637.6,2636.6,0.7663]
[1727359804685,0.7687,2637.6,2636.7,3.84153909]
[1727359804686,3.8409982,2637.5,2636.7,3.84153909]
[1727359804883,0.46096982,2637.4,2636.7,0.04894909]
[1727359805083,0.0495182,2637.5,2636.8,3.79245]
[1727359805269,0.0495182,2637.5,2636.8,3.79238]
[1727359805470,0.0495182,2637.5,2636.6,4.55899]
[1727359805471,0.0495182,2637.5,2636.9,0.04873166]
[1727359805654,0.0495182,2637.5,2637.2,3.79179]
[1727359805983,0.0495182,2637.5,2637.0,3.79212]
[1727359805984,0.0495182,2637.5,2637.3,0.04829689]
[1727359806392,0.0495182,2637.5,2636.6,0.7663]
[1727359806393,0.0495182,2637.5,2637.2,7.5836]
[1727359806563,0.0495182,2637.5,2637.4,0.04818822]
[1727359806768,0.0495182,2637.5,2637.3,0.04829689]
[1727359807077,0.0495182,2637.5,2637.4,0.04818822]
[1727359807285,0.0495182,2637.5,2637.4,3.83979822]
[1727359807586,3.79022,2638.4,2637.7,3.79113]
[1727359807789,4.65673735,2639.1,2637.4,0.04818822]
[1727359807790,3.79047,2638.2,2637.4,0.04818822]
[1727359807949,3.79047,2638.2,2637.8,0.04775361]
[1727359808149,3.79047,2638.2,2637.6,3.79129]
[1727359808350,3.79047,2638.2,2637.9,0.04764498]
[1727359808351,3.79087,2638.0,2637.9,0.04764498]
[1727359808551,4.169657,2638.1,2637.3,4.57852]
[1727359808759,3.79061,2638.1,2637.9,0.04764498]
[1727359808987,3.8396082,2638.5,2637.3,4.57852]
[1727359808988,3.7904,2638.3,2637.3,0.7869]
[1727359809190,0.0495182,2638.5,2638.0,0.04753636]
[1727359809191,3.79063,2638.1,2638.0,0.04753636]
[1727359809402,0.3911301,2639.1,2636.8,0.8092]
[1727359809403,0.3911301,2639.1,2637.3,0.8092]
[1727359809579,3.78907,2639.2,2638.1,3.79052]
[1727359809794,3.78836,2639.7,2638.0,0.8092]
[1727359809795,3.78961,2638.8,2638.0,0.8092]
[1727359809997,3.78961,2638.8,2638.2,0.04731913]
[1727359809998,3.78989,2638.6,2638.2,0.04731913]
[1727359810200,3.7894,2639.0,2638.1,0.04664071]
[1727359810396,4.17229089,2639.1,2638.4,3.79008]
[1727359810570,5.39938009,2639.0,2638.4,3.79008]
[1727359810771,5.39944009,2639.0,2638.5,0.04620634]
[1727359810971,0.38309089,2639.1,2638.7,3.78963]
[1727359811188,0.8602589,2639.3,2638.9,3.78936]
[1727359811421,0.8602589,2639.3,2638.9,3.78937]
[1727359811422,0.0418589,2639.3,2638.9,3.78937]
[1727359811718,0.0418589,2639.3,2638.4,9.20775735]
[1727359811719,0.0418589,2639.3,2639.0,0.04558996]
[1727359811876,0.0418589,2639.3,2638.6,3.78979]
[1727359811877,0.42493079,2639.3,2638.6,3.78988]
[1727359812077,0.42493079,2639.3,2638.7,0.04439218]
[1727359812301,3.78933,2639.0,2638.4,3.79004]
[1727359812487,4.60653,2639.0,2638.5,0.04460932]
[1727359812687,4.60653,2639.0,2638.3,3.79023]
[1727359812688,0.460653,2638.9,2638.3,3.79023]
[1727359813025,0.460653,2638.9,2638.0,0.7764]
[1727359813026,0.460653,2638.9,2638.5,3.78994]
[1727359813199,0.8172,2639.0,2638.6,3.78984]
[1727359813373,3.0418589,2639.3,2638.6,0.04440423]
[1727359813574,0.0418589,2639.3,2638.6,0.04440423]
[1727359813773,3.78908,2639.2,2638.6,0.04440423]
[1727359813992,3.8308189,2639.3,2638.6,0.04440423]
[1727359813993,0.76198989,2639.1,2638.6,3.83428423]
[1727359814317,0.0418589,2639.3,2639.2,7.57992]
[1727359814488,0.0418589,2639.3,2639.2,7.69881164]
[1727359814820,0.0418589,2639.3,2639.2,7.6237465]
[1727359815319,0.0418589,2639.3,2639.2,12.85028385]
[1727359815489,0.9035579,2640.9,2639.9,0.8107]
[1727359815680,3.78699,2640.7,2640.0,0.04101584]
[1727359815876,4.6902079,2640.9,2640.1,3.7876]
[1727359816216,0.0771579,2640.9,2640.3,3.78732]
[1727359816371,0.0771579,2640.9,2640.4,3.78729]
[1727359816576,0.0771579,2640.9,2640.4,0.04031132]
[1727359816777,0.8055,2640.8,2640.4,0.04031132]
[1727359817104,3.78701,2640.7,2639.8,3.78806]
[1727359817334,0.459251,2640.6,2639.7,3.0]
[1727359817636,3.78721,2640.5,2639.8,0.04066384]
[1727359817790,4.246391,2640.6,2639.8,0.04066384]
[1727359817993,0.8055,2640.8,2640.0,3.78786]
[1727359818190,0.8055,2640.8,2639.8,3.82875384]
[1727359818389,3.78727,2640.5,2640.1,0.04033846]
[1727359818613,3.78727,2640.5,2639.6,3.78836]
[1727359818614,4.25387179,2640.7,2639.7,6.78829]
[1727359818824,4.25387179,2640.7,2640.2,0.04023002]
[1727359818825,3.78694,2640.7,2640.2,0.04023002]
[1727359819022,3.78722,2640.5,2639.7,3.0]
[1727359819228,0.459244,2640.6,2640.3,0.04012159]
[1727359819526,0.459244,2640.6,2639.5,4.55286]
[1727359819731,3.78712,2640.6,2639.6,6.78836]
[1727359819938,3.78712,2640.6,2639.7,0.04076773]
[1727359820235,5.46223735,2640.8,2639.1,0.7946]
[1727359820236,3.7884,2639.7,2639.1,0.7946]
[1727359820542,3.78816,2639.8,2638.8,3.78952]
[1727359820543,4.546126,2639.6,2638.8,3.78952]
[1727359820725,4.546126,2639.6,2638.7,0.7946]
[1727359820726,3.78848,2639.6,2638.7,0.7946]
[1727359820919,3.78825,2639.8,2638.7,0.7946]
[1727359821103,4.59985,2640.2,2638.7,0.7946]
[1727359821104,0.8122,2639.6,2638.7,0.7946]
[1727359821320,3.78867,2639.5,2638.7,0.7946]
[1727359821627,3.7886,2639.5,2638.7,0.7946]
[1727359821790,4.60066,2639.6,2638.4,3.7901]
[1727359821791,3.78912,2639.2,2638.4,3.7901]
[1727359821991,3.78912,2639.2,2638.4,3.79008]
[1727359822202,3.78882,2639.4,2638.4,7.58017]
[1727359822402,3.78867,2639.5,2638.5,3.0]
[1727359822605,3.78836,2639.7,2638.7,3.78967]
[1727359822830,4.08757,2640.3,2639.3,3.7888]
[1727359822987,0.3,2640.3,2639.5,3.78859]
[1727359823194,0.3,2640.3,2639.6,0.7606]
[1727359823809,3.7876,2640.2,2639.6,0.7606]
[1727359824010,3.78783,2640.1,2639.3,3.78884]
[1727359824289,3.78783,2640.1,2639.2,0.7848]
[1727359824290,3.78789,2640.0,2639.2,3.7848]
[1727359824495,3.78789,2640.0,2639.3,3.78885]
[1727359824496,4.166663,2640.0,2639.3,3.78885]
[1727359824729,4.166663,2640.0,2639.2,7.5738]
[1727359824939,0.7954493,2639.9,2639.2,7.5738]
[1727359825123,0.7954493,2639.9,2639.2,3.7848]
[1727359825437,5.46303735,2640.4,2639.2,0.7848]
[1727359825438,3.7878,2640.1,2639.2,0.7848]
[1727359825638,3.78754,2640.3,2639.5,3.78852]
[1727359825847,3.78806,2639.9,2639.2,0.7848]
[1727359826049,3.78782,2640.1,2639.2,0.7848]
[1727359826336,3.78782,2640.1,2639.3,3.78883]
[1727359826698,3.78751,2640.3,2639.5,3.78849]
[1727359826926,3.78781,2640.1,2639.3,3.78887]
[1727359827125,0.54630373,2640.3,2639.3,3.78887]
[1727359827312,3.78727,2640.5,2639.7,3.78823]
[1727359827524,7.57393,2640.7,2639.9,3.788]
[1727359827733,1.30604674,2640.6,2639.7,3.78822]
[1727359827899,5.48653735,2640.8,2639.9,0.7892]
[1727359827900,0.8298,2640.8,2639.9,0.7892]
[1727359828103,0.8298,2641.3,2640.0,3.78782]
[1727359828317,0.8298,2641.3,2639.9,0.7892]
[1727359828318,3.8638279,2640.9,2639.9,0.7892]
[1727359828511,3.78673,2640.8,2640.0,3.78786]
[1727359828804,0.0771579,2640.9,2640.3,3.78744]
[1727359829147,8.83877232,2641.6,2640.1,3.7877]
[1727359829148,3.78551,2641.7,2640.9,3.7865]
[1727359829314,3.78551,2641.7,2640.8,0.7931]
[1727359829315,3.78566,2641.6,2640.8,0.7931]
[1727359829527,3.7859,2641.4,2640.8,0.7931]
[1727359829827,3.7859,2641.4,2640.5,3.7871]
[1727359829828,7.57188,2641.4,2640.5,0.8248]
[1727359830031,4.543218,2641.3,2640.5,4.61193]
[1727359830200,3.78624,2641.2,2640.5,0.8248]
[1727359830397,0.757188,2641.3,2640.5,0.8248]
[1727359830658,3.78565,2641.6,2640.5,0.8248]
[1727359830937,3.78603,2641.3,2640.5,4.61193]
[1727359831141,4.65673735,2641.1,2640.5,4.61193]
[1727359831347,4.65673735,2641.1,2640.5,0.8248]
[1727359831643,3.78645,2641.0,2640.5,0.8248]
[1727359832000,4.65673735,2641.1,2640.4,0.8326]
[1727359832196,4.65673735,2641.1,2640.4,4.61977]
[1727359832405,4.65673735,2641.1,2640.0,3.78784]
[1727359832406,0.42590215,2642.2,2641.2,3.78604]
[1727359832616,4.65673735,2641.9,2641.7,3.78543]
[1727359832818,3.78293,2643.5,2642.3,3.78455]
[1727359833017,2.65945119,2643.6,2642.3,3.78457]
[1727359833018,5.43343735,2643.6,2642.3,3.78457]
[1727359833247,5.43343735,2643.6,2642.1,0.7896]
[1727359833248,3.78302,2643.4,2642.1,0.7896]
[1727359833434,5.43343735,2643.6,2642.7,3.7839]
[1727359833435,0.54334374,2643.5,2642.7,3.7839]
[1727359833609,0.19758082,2644.1,2643.0,0.7992]
[1727359833810,3.7826,2643.7,2643.0,0.7992]
[1727359834018,4.65673735,2643.3,2642.6,0.7992]
[1727359834255,3.78276,2643.6,2642.6,0.7992]
[1727359834256,3.78288,2643.5,2642.6,0.7992]
[1727359834457,5.31336766,2643.4,2642.6,0.7992]
[1727359834744,6.30630243,2643.4,2642.6,4.58328]
[1727359834950,3.78248,2643.8,2642.6,4.58328]
[1727359834951,9.09584766,2643.8,2642.6,0.7992]
[1727359835120,9.09589766,2643.8,2642.7,3.78397]
[1727359835448,9.09589766,2643.8,2642.6,0.7992]
[1727359835449,3.78281,2643.6,2642.8,0.06996693]
[1727359835660,5.31336766,2643.4,2642.8,0.06996693]
[1727359835949,5.31336766,2643.0,2642.9,0.06700148]
[1727359836257,3.78306,2643.4,2642.2,4.57617]
[1727359836461,5.69167366,2643.3,2642.2,0.7915]
[1727359836607,0.55411555,2643.9,2642.4,0.8242]
[1727359836812,9.09586766,2643.8,2642.6,3.78402]
[1727359837053,3.78222,2644.0,2642.5,0.8242]
[1727359837054,5.31336766,2643.4,2642.5,0.8242]
[1727359837210,5.31336766,2643.4,2642.7,0.06722087]
[1727359837543,5.31336766,2643.4,2642.6,3.78413]
[1727359837946,5.31336766,2643.8,2642.7,0.06722087]
[1727359838152,5.31336766,2643.8,2643.1,3.78343]
[1727359838153,5.77284266,2643.8,2643.1,3.78343]
[1727359838354,5.77284266,2643.8,2642.8,0.8292]
[1727359838355,5.31336766,2643.8,2643.2,0.06667245]
[1727359838657,5.31336766,2643.8,2643.1,3.78334]
[1727359838820,5.31336766,2643.8,2643.4,0.8292]
[1727359839027,0.0771579,2644.1,2643.4,0.8292]
[1727359839205,5.31336766,2643.8,2643.5,0.06634349]
[1727359839411,5.31336766,2643.8,2642.5,3.0]
[1727359839412,9.09589766,2643.8,2643.0,0.7973]
[1727359839907,5.31336766,2643.8,2643.1,0.06678212]
[1727359840121,0.0771579,2644.1,2643.1,3.85011212]
[1727359840551,0.0771579,2644.1,2643.1,3.85009212]
[1727359840757,0.0771579,2644.1,2643.1,0.06678212]